Cogmind - Beta 17 @@@ ROGUE MODE // 2026.07.27 @ 19:18:31 Player: thingimabob Result: Destroyed by O0-7LA(R) with Subdweller Laser Performance ------------- Evolutions (0) 0 Regions Visited (3) 600 Robots Destroyed (35) 175 Value Destroyed (694) 694 Prototype IDs (0) 0 Alien Tech Used (0) 0 Bonus (0) 0 TOTAL SCORE: 1469 Bonus ------- None Cogmind --------- Core Integrity 0/250 Matter 268/300 Energy 100/100 System Corruption 2% Temperature Cool (6) Movement Walking (200) Ox1 Location -10/Subcaves Parts ------- > --- POWER (1) -------- Subdweller Power Source > --- PROPULSION (2) --- Aluminum Leg Makeshift Leg > --- UTILITY (2) ------ Large Storage Unit Makeshift Light Armor Plating (fused) > --- WEAPON (2) ------- Heavy Assault Rifle Heavy Assault Rifle > --- INVENTORY (15) --- Ion Engine Aluminum Leg Aluminum Leg High-capacity Matter Pod (200) Structural Scanner Targeting Computer Targeting Computer Targeting Computer Scrap Shield Makeshift Hacking Suite Tractor Beam Light Assault Rifle Light Assault Rifle Grenade Launcher Peak State ------------ > --- POWER ------------ Subdweller Power Source > --- PROPULSION ------- Aluminum Leg Makeshift Leg > --- UTILITY ---------- Large Storage Unit Makeshift Light Armor Plating > --- WEAPON ----------- Heavy Assault Rifle Heavy Assault Rifle > --- INVENTORY -------- Ion Engine Aluminum Leg Aluminum Leg High-capacity Matter Pod Structural Scanner Targeting Computer Targeting Computer Targeting Computer Scrap Shield Makeshift Hacking Suite Tractor Beam Light Assault Rifle Light Assault Rifle Grenade Launcher [Rating: 18] Favorites ----------- Power Ion Engine Engine Ion Engine Propulsion Aluminum Leg Leg Aluminum Leg Utility Large Storage Unit Device Subdweller Optics Storage Large Storage Unit Processor Visual Processing Unit Protection Makeshift Light Armor Plating Weapon Heavy Assault Rifle Ballistic Gun Heavy Assault Rifle Launcher Grenade Launcher Build | -11 -10 -10 -10 ------- Run | Yrd Mat Min Sub Slots Evolved . | . . . . Power . | . . . . Propulsion . | . . . . Utility . | . . . . Weapon . | . . . . Parts Attached 27 | 7 10 2 8 Power 3 | 1 1 . 1 Engine 3 | 1 1 . 1 Core . | . . . . Reactor . | . . . . Propulsion 9 | 2 4 2 1 Treads . | . . . . Leg 9 | 2 4 2 1 Wheel . | . . . . Hover . | . . . . Flight . | . . . . Utility 8 | 2 3 . 3 Device 3 | 1 1 . 1 Storage 3 | 1 1 . 1 Processor 1 | . 1 . . Hackware . | . . . . Protection 1 | . . . 1 Artifact . | . . . . Weapon 7 | 2 2 . 3 Energy Gun . | . . . . Energy Cannon . | . . . . Ballistic Gun 6 | 2 2 . 2 Ballistic Cannon . | . . . . Launcher 1 | . . . 1 Special Weapon . | . . . . Impact Weapon . | . . . . Slashing Weapon . | . . . . Piercing Weapon . | . . . . Special Melee Weapon . | . . . . Unidentified Prototypes . | . . . . Parts Lost 3 | . 1 . 2 Power . | . . . . Propulsion . | . . . . Utility 1 | . 1 . . Weapon 2 | . . . 2 Highest Loss Streak 1 | . 1 . 1 To Critical Strikes . | . . . . Average Backups 12 | 1 11 15 14 Power . | . . . . Propulsion 3 | 1 4 3 2 Utility 5 | . 3 7 7 Weapon 3 | . 3 4 3 Tool/Special . | . . . . Unused Backups 13 | . 3 1 9 Power . | . . . . Propulsion 4 | . 2 1 1 Utility 6 | . . . 6 Weapon 3 | . 1 . 2 Tool/Special . | . . . . Average Slot Usage (%) 99 | . 98 100 99 Engine 14 | . 14 14 14 Leg 28 | . 28 28 28 Device 4 | . 6 . 4 Storage 14 | . 14 14 15 Processor 5 | . 6 14 3 Protection 2 | . . . 4 Ballistic Gun 27 | . 28 28 27 Peak Build Rating 18 | 7 11 11 18 Average Rating 10 | 5 9 11 12 On Entrance 7 | . 7 11 11 Avg Prop Armor Cover (%) . | . . . . Naked Turns . | . . . . Heaviest Build 35 | 13 32 31 35 Greatest Support 30 | 20 20 20 30 Greatest Overweight (x) 2 | 2 1 1 1 Average Overweight (x) . | . . 1 1 Largest Inventory Capacity 15 | 8 15 15 15 Average Capacity 14 | 7 14 15 15 Most Carried 15 | 3 15 15 15 Average Carried 13 | 1 11 14 14 Final Capacity 15 | 8 15 15 15 Final Carried 15 | 3 15 15 15 Class Distribution -------------------- 97% | Mutant Dominant Class ---------------- Mutant | -10/Materials Mutant | -10/Mines Mutant | -10/Subcaves Resources | -11 -10 -10 -10 ----------- Run | Yrd Mat Min Sub Matter Collected 1224 | 286 489 119 330 Remotely . | . . . . Salvage Created 1040 | 77 464 145 354 Parts 81 | 8 38 9 26 Haulers Intercepted 2 | . 2 . . Recyclers Shooed 2 | . 2 . . Parts Field Recycled . | . . . . Retrieved Matter . | . . . . Parts Self-Destructed 15 | . . . 15 Prevented . | . . . . Parts Restored . | . . . . Kills | -11 -10 -10 -10 ------- Run | Yrd Mat Min Sub Combat Hostiles Destroyed 28 | . 13 5 10 Guns 28 | . 13 5 10 Classes Destroyed 9 | 2 5 . 2 Tunneler 1 | 1 . . . Hauler 2 | . 2 . . Recycler 1 | 1 . . . Operator 1 | . 1 . . Watcher 2 | . 2 . . Swarmer 16 | . 9 3 4 Grunt 7 | . 4 2 1 Sentry 1 | . . . 1 Subdweller 4 | . . . 4 Best Kill Streak 4 | 2 4 3 4 Combat Bots Only 4 | . 3 3 4 Max Kills in Single Turn 2 | 1 1 2 1 Gunslinging 1 | . . 1 . Exploded . | . . . . Melee . | . . . . Uniques/NPCs Destroyed . | . . . . Combat | -11 -10 -10 -10 -------- Run | Yrd Mat Min Sub Hostile Shots Fired 133 | . 43 24 66 Missed 32 | . 11 6 15 Hits 101 | . 32 18 51 Projectile 101 | . 32 18 51 Critical Strikes 2 | . 1 . 1 Damage Taken 1226 | . 303 183 740 Core 269 | . 55 47 167 Absorbed by Shields . | . . . . Core Remaining (%) 100 | 100 . . . Volleys Fired 106 | 8 51 15 32 Largest 2 | 2 2 2 2 Hottest 53 | 40 46 46 53 Shots Fired 214 | 16 102 30 66 Gun 213 | 16 102 30 65 Cannon . | . . . . Launcher 1 | . . . 1 Special . | . . . . Kinetic 213 | 16 102 30 65 Thermal . | . . . . Explosive 1 | . . . 1 Electromagnetic . | . . . . Robot Hit Streak 13 | 7 6 6 13 Robot Miss Streak 3 | 2 3 3 2 Penetration Max . | . . . . Secondary Targets 4 | . 1 2 1 Max Gunslinging Chain 1 | . 1 1 1 Shots Hit Robots 126 | 11 53 18 44 Core Hits 53 | 4 27 6 16 Critical Kills 1 | . 1 . . Critical Parts Destroyed . | . . . . Critical Strikes 2 | . 1 . 1 Destroy 2 | . 1 . 1 Melee Attacks . | . . . . Impact . | . . . . Slashing . | . . . . Piercing . | . . . . Sneak Attacks . | . . . . Combat Hostiles . | . . . . Follow-up Attacks . | . . . . Damage Inflicted 1603 | 98 575 291 639 Guns 1583 | 98 573 291 621 Cannons . | . . . . Explosions 18 | . . . 18 Melee . | . . . . Ramming 2 | . 2 . . Kinetic 1583 | 98 573 291 621 Thermal . | . . . . Explosive 18 | . . . 18 Electromagnetic . | . . . . Impact . | . . . . Slashing . | . . . . Piercing . | . . . . Highest Corruption 2 | . 2 2 2 Average Corruption 2 | . 2 2 2 Corruption Purged . | . . . . Corruption Blocked . | . . . . Effects 26 | . 5 4 17 Message Errors 4 | . . 1 3 Matter Fused 8 | . . 3 5 Heat Flow Errors 2 | . 1 . 1 Energy Discharges 5 | . 2 . 3 Parts Fused 1 | . . . 1 Data Loss (minor) 2 | . . . 2 Misfires 2 | . . . 2 Alerts 2 | . 2 . . Overload Shots . | . . . . Overflow Damage . | . . . . Projectiles . | . . . . Explosions . | . . . . Melee . | . . . . Knockbacks . | . . . . Impact . | . . . . Kinetic . | . . . . Secondary . | . . . . Self-Inflicted Damage . | . . . . Shots . | . . . . Rammed . | . . . . Targets Rammed 2 | . 2 . . Kicked 2 | . 2 . . Crushed . | . . . . Highest Temperature 266 | . 266 11 256 Average Temperature 76 | . 77 6 125 Received Heat Transfer 633 | . 105 60 468 Siege Activations . | . . . . Martial Activations . | . . . . Shielding Activations . | . . . . Robots Disrupted . | . . . . Combat Hostiles . | . . . . Robots Corrupted . | . . . . Combat Hostiles . | . . . . Parts Fried . | . . . . Impact Corruptions . | . . . . Robots Melted . | . . . . Combat Hostiles . | . . . . Parts Melted . | . . . . Heat Transferred . | . . . . Parts Sabotaged . | . . . . Parts Stolen . | . . . . Parts Stripped . | . . . . Power Chain Reactions . | . . . . Alert | -11 -10 -10 -10 ------- Run | Yrd Mat Min Sub Maximum Alert Level . | . . . . Low Security (%) 100 | 100 100 100 . Level 1 . | . . . . Level 2 . | . . . . Level 3 . | . . . . Level 4 . | . . . . Level 5 . | . . . . High Security . | . . . . Max Security . | . . . . Peak Influence 90 | 10 90 82 . Initial 12 | . . 12 . Average 30 | 1 30 36 . Influence Increases 734 | 10 394 120 210 Destroy 0b10 Robot/C 480 | . 260 100 120 Destroy 0b10 Robot/NC 35 | 10 25 . . Destroy Leader 78 | . 58 20 . Successful Hack 6 | . 6 . . Lose Combat Pursuer 135 | . 45 . 90 Influence Decreases 654 | 10 363 151 130 Entered New Map 19 | . . 19 . Time Decay 625 | 10 353 132 130 Lost Part 10 | . 10 . . Squads Dispatched 2 | . 2 . . Investigation . | . . . . Extermination . | . . . . Reinforcement 2 | . 2 . . Assault . | . . . . Garrison . | . . . . Intercept . | . . . . Searches Triggered . | . . . . Construction Impeded . | . . . . Haulers Reinforced . | . . . . Active Scanning Responses . | . . . . Cargo Convoy Interrupts . | . . . . Stealth | -11 -10 -10 -10 --------- Run | Yrd Mat Min Sub Distress Signals 1 | . 1 . . Communications Jammed . | . . . . Distress Signals . | . . . . Times Spotted 45 | . 25 4 16 Peak Tracking Total 4 | . 4 2 4 Tactical Retreats 5 | . 3 . 2 Traps | -11 -10 -10 -10 ------- Run | Yrd Mat Min Sub Traps Triggered 2 | . 1 . 1 Indirectly . | . . . . Trap Hack Attempts . | . . . . Triggered . | . . . . Disarmed . | . . . . Reprogrammed . | . . . . Reused . | . . . . Traps Extracted . | . . . . Installed . | . . . . Triggered . | . . . . Machines | -11 -10 -10 -10 ---------- Run | Yrd Mat Min Sub Machines Disabled 2 | . . . 2 Max in Single Turn 2 | . . . 2 Machines Repaired . | . . . . Machines Dismantled . | . . . . Machines Sabotaged . | . . . . Overloaded Fab Kills . | . . . . Hacking | -11 -10 -10 -10 --------- Run | Yrd Mat Min Sub Machines Accessed 6 | . 6 . . Terminals 4 | . 4 . . Fabricators . | . . . . Repair Stations . | . . . . Recycling Units 2 | . 2 . . Scanalyzers . | . . . . Garrison Access . | . . . . Total Hacks 12 | . 12 . . Successful 4 | . 4 . . Failed 8 | . 8 . . Catastrophic 2 | . 2 . . Database Lockouts . | . . . . Manual 10 | . 10 . . Terminals 8 | . 8 . . Fabricators . | . . . . Repair Stations . | . . . . Recycling Units 4 | . 4 . . Scanalyzers . | . . . . Garrison Access . | . . . . Terminal Hacks 2 | . 2 . . Branch Access Points 1 | . 1 . . Hauler Manifests 1 | . 1 . . Fabricator Hacks . | . . . . Repair Station Hacks . | . . . . Recycling Unit Hacks . | . . . . Scanalyzer . | . . . . Garrison Access Hacks . | . . . . Unauthorized Hacks 2 | . 2 . . Terminals . | . . . . Fabricators . | . . . . Repair Stations . | . . . . Recycling Units 2 | . 2 . . Reject 1 | . 1 . . Mask 1 | . 1 . . Scanalyzers . | . . . . Garrison Access . | . . . . Data Cores Recovered . | . . . . Used . | . . . . Hacking Detections 4 | . 4 . . Full Trace Events . | . . . . Feedback Events . | . . . . Feedback Blocked . | . . . . Robot Schematics Acquired . | . . . . Robots Built . | . . . . Authchips . | . . . . Time . | . . . . Total Robot Build Rating . | . . . . Part Schematics Acquired . | . . . . Parts Built . | . . . . Authchips . | . . . . Time . | . . . . Total Part Build Rating . | . . . . Part Studies Acquired . | . . . . Parts Repaired . | . . . . Time . | . . . . Parts Recycled . | . . . . Recycled Matter . | . . . . Retrieved Matter . | . . . . Retrieved Components . | . . . . Parts Scanalyzed . | . . . . Part Schematics Acquired . | . . . . Parts Damaged . | . . . . Bothacking | -11 -10 -10 -10 ------------ Run | Yrd Mat Min Sub Used RIF Installer . | . . . . Robots Hacked . | . . . . Non-combat . | . . . . Combat . | . . . . Robot Hacks Applied . | . . . . Relay Couplers Released . | . . . . Fabnet Peak Effective % . | . . . . Robots Rewired . | . . . . Allies Hacked . | . . . . Hacks Repelled . | . . . . Allies | -11 -10 -10 -10 -------- Run | Yrd Mat Min Sub Total Allies . | . . . . Largest Group . | . . . . Highest-Rated Group . | . . . . Highest-Rated Ally . | . . . . Total Orders . | . . . . Ally Attacks . | . . . . Total Damage . | . . . . Kills . | . . . . Allies Corrupted . | . . . . Allies Melted . | . . . . Intel | -11 -10 -10 -10 ------- Run | Yrd Mat Min Sub Active Infowar (turns) 2601 | 25 1313 349 914 Optics 1958 | . 695 349 914 Structural 330 | . 330 . . Seismic 313 | 25 288 . . Robot Analysis Total . | . . . . Derelict Logs Recovered 1 | . . . 1 Drone Launches . | . . . . Drone Recoveries . | . . . . Exploration | -11 -10 -10 -10 ------------- Run | Yrd Mat Min Sub Turns Passed 3490 | 95 1424 349 1622 Spaces Moved 1589 | 52 681 158 698 Core 9 | 9 . . . Treads . | . . . . Legs 1580 | 43 681 158 698 Wheels . | . . . . Hover . | . . . . Flight . | . . . . Fastest Speed 50 | 50 120 190 190 Average Speed 183 | 117 179 190 190 Slowest Speed 200 | 150 190 190 200 Overloaded Moves . | . . . . Propulsion Burnouts . | . . . . Robots Hopped . | . . . . Potential Cave-ins . | . . . . Cave-ins Triggered . | . . . . Exploration Rate (%) 41 | 3 88 33 42 Regions Visited 3 Branch Regions 2 Pre-discovered Areas 1 | . . . 1 Known Exits Taken 1 | . 1 . . Unknown Exits Taken 2 | 1 . 1 . Scrap Searched 3 | . . 1 2 Spaces Dug . | . . . . Terrain Destroyed 4 | . . . 4 Melee . | . . . . Projectile . | . . . . AOE 4 | . . . 4 Terrain Rammed . | . . . . Walls Destroyed . | . . . . Machines Disabled . | . . . . Actions | -11 -10 -10 -10 --------- Run | Yrd Mat Min Sub Total 1969 | 69 797 179 924 Wait 202 | . 30 1 171 Move 1586 | 51 680 157 698 Hop . | . . . . Pick Up 21 | 3 13 1 4 Fast Attach 10 | 7 1 . 2 Attach 4 | . 1 . 3 Detach 2 | . 1 . 1 Swap 18 | . 10 2 6 Drop 18 | . 8 3 7 Fire 106 | 8 51 15 32 Melee . | . . . . Ram . | . . . . Kick 2 | . 2 . . Crush . | . . . . Escape Stasis . | . . . . Rewire . | . . . . Trap . | . . . . Miscellaneous . | . . . . Route ------- -11/Scrapyard -10/Materials (discovered 4 exits: [*Mat x3] / *Min) -10/Mines -10/Subcaves (discovered 1 exit: [*Rec]) History --------- Turn | Location | Event 12 | -11/Scrapyard | Discovered new exit (range 16) 96 | -11/Scrapyard | Entered Materials 205 | -10/Materials | Discovered new exit (range 13) 315 | -10/Materials | Build established: Mutant 481 | -10/Materials | Discovered new exit (range 16) 665 | -10/Materials | Discovered new exit (range 5) 1048 | -10/Materials | Identified exit to Mines 1065 | -10/Materials | Discovered new exit (range 18) 1520 | -10/Materials | Entered Mines 1854 | -10/Mines | Discovered new exit (range 8) 1869 | -10/Mines | Entered Subcaves 1919 | -10/Subcaves | Core integrity fell below 50% 2665 | -10/Subcaves | Learned location of Zion (-7) 2665 | -10/Subcaves | Met a Zionite searching for "candidates" 2749 | -10/Subcaves | Core integrity fell below 20% 3231 | -10/Subcaves | Discovered new exit (range 13) 3391 | -10/Subcaves | Learned 8 Materials zone layouts 3491 | -10/Subcaves | Destroyed by O0-7LA(R) with Subdweller Laser Last Messages --------------- IKN8OFLUVEMSXNCYBMHGIIJII OHQCU/INXOQ5 G-34 Mercenary destroyed. Y-45 Defender destroyed. Acquired 30 matter. Ion Engine fries itself beyond repair. Heat Sink fries itself beyond repair. Sub. Power Source shoots sparks and powers down. Lgt. Armor Plating fries itself beyond repair. Dropped Aluminum Leg. Acquired derelict log, extracted data. Data stored: Materials zone layouts (x8). System corrupted: Matter fused (-10). System corrupted: Component data lost. Map ----- +----------------------------------------------------+ | ???????????????## #??????????????????? | | ???????????????# ##??????????????????? | | ???????????????# #??????????????????? | | ???????????????# ##??????????????????? | | ???????????????## #??????????????????? | | ???????????????# ##??????????????????? | | ???????????????# ##??????????????????? | | ???????????????# #??#####???????????? | | ???????????????# #### ###?????????? | | ???????????????# ## #?????????? | | ???????????????## ## ##????????? | | ???????????????# #????????? | | ???????????????# ## #???? | | ???????????????# #?? #?? | | ???????????????## ##?? #? | | ????????????????# ##???# ?? | | ???????????????## ##???? ?? | | ???????????????# #?????? #?? | | ????????######### ######??????? ??? | | ???????? " "" #### ##???????????????? | | ?????????" """"""### ##????????????????? | | ?????????? " "" ## #?????????????????? | | ????????????" ## #?????????????????? | | ??????????????" # ##????????????????? | | ??????????????##R## ##???? #?????????? | | ??????????????#@ #" ## ## #????? | | ??????????????# #???? | | ??????????????# #???? | | ??????????????# # < #???? | | ??????????????#####< ????? | | ??????????????????# #### ## ????? | | ??????????????????## ##???? ##??????? | | ???????????????????# #??????????????? | | ??????????????????? #?????????????? | | ???????????????????#######?????????????? | | ???????????????????????????????????????? | | ???????????????????????????????????????? | | ???????????????????????????????????????? | | ???????????????????????????????????????? | | ???????????????????????????????????????? | | ???????????????????????????????????????? | | ???????????????????????????????????????? | | ???????????????????????????????????????? | | ???????????????????????????????????????? | | ???????????????????????????????????????? | | ???????????????????????????????????????? | | ???????????????????????????????????????? | | ???????????????????????????????????????? | | ???????????????????????????????????????? | | ???????????????????????????????????????? | +----------------------------------------------------+ Best States ------------- Heat Dissipation 25 Energy Generation 15 Energy Capacity 250 Matter Stores 500 Matter Capacity 500 Sight Range 21 Terrain Scan Density 10 Armor Coverage 100 Evasion (%) 55 Item Schematics ----------------- None Robot Schematics ------------------ None Fabricated ------------ Nothing Repaired ---------- Nothing Studied --------- None Alien Tech Used ----------------- None Achievements -------------- None Challenges ------------ None Game ------ Seed ConceptEtherialCyclogen Manual? 0 Play Time 00:18:38 Cumulative 59.9 hours Start 2026.07.27 @ 19:01:13 End 2026.07.27 @ 19:18:31 Sessions 1 Manual Loads 0 Difficulty Rogue Special Mode None Game No. 73 Rogue 73 Adventurer 0 Explorer 0 Win Type - Total 1 Types 1/0/0/0/0/0/0/0/0/0 Lore% 38 Gallery% 35 Achievement% 32 Wizard Run 0 Options --------- Layout 1 ASCII 0 Keyboard 0 Movement Mouse Keybinds 0 Fullscreen 2 Font 24/Smallcaps Map View 50x35 Zoom Use 0% Tactical HUD 0 Map Filters NONE Filters NONE Steam 1 RUN: d3dffbf5-d542-4417-b53a-b5ced2a24a75